Workbook

Sheet بيانات الفواتير
D3: الفواتيرة
A4: الفترة | B4: رقم الزبون | C4: رقم الفاتورة | D4: مدين | E4: دائن
A5: 01/2019 | B5: 1001 | C5: 001 | D5: 8000 | K5: سلام عليكم
A6: 01/2019 | B6: 1002 | C6: 002 | D6: 4900 | K6: سادة الاعضاء كيف حالكم اتمنى ان تكونو في احسن حال ان شاء الله
A7: 01/2019 | B7: 1001 | C7: 003 | E7: 1500 | K7: اعتذر عن غيابي عن منتدى
A8: 01/2019 | B8: 1002 | C8: 004 | E8: 700 | K8: سادة الاعضاء لي طلب اتمنى ان اجد الجواب عندكم ان شاء الله
A9: 01/2019 | B9: 1002 | C9: 005 | E9: 400
A10: 01/2019 | B10: 1002 | C10: 006 | D10: 3000 | K10: انا عملت ثلاث اوراق
A11: 01/2019 | B11: 1003 | C11: 007 | D11: 9040 | K11: الاولي خاصة بالفاواتير خلال الاشهر
A12: 01/2019 | B12: 1004 | C12: 008 | D12: 2400 | K12: الثانية خاصة بالتسديدات خلال الاشهر
A13: 01/2019 | B13: 1003 | C13: 009 | D13: 800 | K13: الثالة خاصة بكشف الحساب لكل زبون
A14: 01/2019 | B14: 1003 | C14: 010 | E14: 840 | K14: والعمل كنا يلي
A15: 01/2019 | B15: 1004 | C15: 011 | D15: 4800 | E15: 80 | K15: الورقة الاولي
A16: 01/2019 | B16: 1003 | C16: 012 | D16: 1000 | K16: في المصلحة حيث اعمل استخرج بيانات الفواتير الشهر من احد البرامج المخصصة
A17: 01/2019 | B17: 1004 | C17: 013 | D17: 1400 | K17: واضعها في الاكسال كما هي موضحة امامكم وهي خاصة بشهر جانفي
A18: 01/2019 | B18: 1004 | C18: 014 | E18: 1800 | K18: بعد انتهاء شهر فيفري استخرج البيانات شهر فيفري واصعها تحت
A19: 01/2019 | B19: 1004 | C19: 015 | E19: 400 | K19: شهر جانفي مباشرة اي ابتداء من سطر رقم 27 وكذالك شهر مارس ياتي
A20: 01/2019 | B20: 1004 | C20: 016 | D20: 1500 | K20: مباشرة بعد شهر فيفري و هكدا لكل الاشهر
A21: 01/2019 | B21: 1004 | C21: 017 | E21: 900
A22: 01/2019 | B22: 1005 | C22: 018 | D22: 8000 | K22: الورقة الثانية
A23: 01/2019 | B23: 1005 | C23: 019 | E23: 2100 | K23: اضع فيها التسديدات خلال الشهر والمستخرجة من نفس البرنامج المخصص
A24: 01/2019 | B24: 1006 | C24: 020 | D24: 4580 | K24: واضعها بالاكسل بنفس الترتيب الصفحة الاولى
A25: 01/2019 | B25: 1006 | C25: 021 | E25: 400 | K25: وبها الفواتير المسددة فقط
A26: 01/2019 | B26: 1006 | C26: 022 | D26: 2100 | K26: مع العلم ان الارقام الفواتير لا تتكرر من شهر لاخر
K28: الورقة الثالثة
K29: وهنا الاهم حيث وضعت كشف الحساب لكل عميل وخصصت لكل منهم
K30: عدد من الاسطر مثلا الزبون رقم 1001 من تعاملي معه اعلم ان الفواتير التي ارسلها
K31: له خلال السنة لا تتجاوز 130 فاتورة لكن انا خصصت له من الاسطر من السطر رقم 5
K32: الى السطر رقم 184 اكثر من 130 سطر وهذا كاحتياط وهكذا كل زبون اخصص له اسطر
K33: لعلمي بحجم الفاوير التي يتحصل عليها خلال السنة مع زيادة عدد الاسطر كاحتياط
K35: الخطوة الاولى اني اخفيت الاسطر الفارغة مثلا الزبون 1001 له فاتورتين في شهر
K36: جانفي ولذلك بقية الاسطر التي يكون رصيدها يساوي 0 تكون مختفية
K37: وهذا الى السطر الخاص بالمجموع
K39: طلبي الاول هنا مايلي
K40: عند استخرج بيانات الفواتير شهر فيفري واضعها في ورقة الاولى اريد ماكرو يقوم بترحيل
K41: الفواتير الى الورقة الثالثة ولكل زبون فواتيره
K43: طلبي الثاني
K44: عند استخرج بيانات الفواتيرالمسددة في شهر فيفري واضعها في ورقة االثانية اريد ماكرو
K45: يقوم بترحيل التسديدات الفواتير الى الورقة االثالثة ولكل زبون تسديدات الخاصة بفواتيره
K46: طلبي الثالث
K47: اريد ماكرو خاص باصفحة الثالثة انه عند ادخال الفواتير من الصفحة الاولى اريد ان يفتح
K48: الاسطر التي بها فواتير اي عندما يكون السطر به رصيد موجب او سالب فانه يغتح
K49: وكذلك ان سددة الفاتورة واصبح رصيدها 0يساوي 0 فان السطر الخاص بها يغلق او يختفي
K50: لكن لن يمحى يغلق فقط
K52: اتمنى ان اكون شرحت طلبي جيدا واعتذر عن الاطالة
K53: اتمنى ان اجد عندكم الجواب ولو بالتدرج قد نجد الحل على الطلب الثالث هو الاول وبعدها
K54: نجد الحل الخاص بالطلب الاول والثاني المهم ان نجد الحل
K55: سادة الاعصاء تقبلو مني فائق التقدير ةالاحترام وجزاكم الله خيرا
K56: وشكر

Sheet بيانات التسديد
A2: بيانات التسديد
D3: التسديد
A4: رقم الزبون | B4: الفترة | C4: رقم الفاتورة | D4: مدين
A5: 1001 | D5: 25

Sheet كشف الحساب
N4: لدي معلومة عن كيفية اغلاق اخفاء السطر بمجرد وضع الفارة على خلية في العمود (I) ويطلب منك هل توافق على اخفاء السطر وهذ ابتداء من سطر رقم 15
N6: واريد ان اطبفها بشرط الخلية في العمود(I) تساوي (0) ودون التدخل مني
N7: اي مثلا الزبون 1001 لديه فاتور رقم 001 بمبلغ 8000 عندما اضع في الصفحة التسديد ان الزبون 1001 سدد الفاتورة 001 بمبلغ 8000 وبمجرد ا
N8: لرجوع الى الصفحة كشف الحساب اجد ان السطر الخاص بالفاتورة 001 مختفي
A12: رقم الزبون | B12: 1001
D13: الفوترة | G13: التسديد
A14: رقم الزبون | B14: الفترة | C14: رقم الفاتورة | D14: مدين | E14: دائن | I14: الرصيد
A15: 1001 | B15: 01/2019 | C15: 0001 | D15: 8000 | I15: =IF(D15>0,D15-G15,-E15+G15) -> 8000
A16: 1001 | B16: 01/2019 | C16: 0003 | E16: 1500 | I16: =IF(D16>0,D16-G16,-E16+G16) -> -1500
I17: =IF(D17>0,D17-G17,-E17+G17) -> 0
I18: 0
I19: 0
I20: 0
I21: 0
I22: 0
I23: 0
I24: 0
I25: 0
I26: 0
I27: 0
I28: 0
I29: 0
I30: 0
I31: 0
I32: 0
I33: 0
I34: 0
I35: 0
I36: 0
I37: 0
I38: 0
I39: 0
I40: 0
I41: 0
I42: 0
I43: 0
I44: 0
I45: 0
I46: 0
I47: 0
I48: 0
I49: 0
I50: 0
I51: 0
I52: 0
I53: 0
I54: 0
I55: 0
I56: 0
I57: 0
I58: 0
I59: 0
I60: 0
I61: 0
I62: 0
I63: 0
I64: 0
I65: 0
I66: 0
I67: 0
I68: 0
I69: 0
I70: 0
I71: 0
I72: 0
I73: 0
I74: 0
I75: 0
I76: 0
I77: 0
I78: 0
I79: 0
I80: 0
I81: =IF(D81>0,D81-G81,-E81+G81) -> 0
I82: 0
I83: 0
I84: 0
I85: 0
I86: 0
I87: 0
I88: 0
I89: 0
I90: 0
I91: 0
I92: 0
I93: 0
I94: 0
I95: 0
I96: 0
I97: 0
I98: 0
I99: 0
I100: 0
I101: 0
I102: 0
I103: 0
I104: 0
I105: 0
I106: 0
I107: 0
I108: 0
I109: 0
I110: 0
I111: 0
I112: 0
I113: 0
I114: 0
I115: 0
I116: 0
I117: 0
I118: 0
I119: 0
I120: 0
I121: 0
I122: 0
I123: 0
I124: 0
I125: 0
I126: 0
I127: 0
I128: 0
I129: 0
I130: 0
I131: 0
I132: 0
I133: 0
I134: 0
I135: 0
I136: 0
I137: 0
I138: 0
I139: 0
I140: 0
I141: 0
I142: 0
I143: 0
I144: 0
I145: =IF(D145>0,D145-G145,-E145+G145) -> 0
I146: 0
I147: 0
I148: 0
I149: 0
I150: 0
I151: 0
I152: 0
I153: 0
I154: 0
I155: 0
I156: 0
I157: 0
I158: 0
I159: 0
I160: 0
I161: 0
I162: 0
I163: 0
I164: 0
I165: 0
I166: 0
I167: 0
I168: 0
I169: 0
I170: 0
I171: 0
I172: 0
I173: 0
I174: 0
I175: 0
I176: 0
I177: 0
I178: 0
I179: 0
I180: 0
I181: 0
I182: 0
I183: 0
I184: 0
I185: 0
I186: 0
I187: 0
I188: 0
I189: 0
I190: 0
I191: 0
I192: 0
I193: 0
I194: 0
D196: =SUM(D15:D195) -> 8000 | E196: =SUM(E15:E195) -> 1500 | G196: =SUM(G15:G195) -> 0 | I196: =SUM(I15:I195) -> 6500
A201: رقم الزبون | B201: 1002
D202: الفوترة | G202: التسديد
A203: رقم الزبون | B203: الفترة | C203: رقم الفاتورة | D203: مدين | E203: دائن | I203: الرصيد
A204: 1002 | B204: 01/2019 | C204: 002 | D204: 4900 | I204: =IF(D204>0,D204-G204,-E204+G204) -> 4900
A205: 1002 | B205: 01/2019 | C205: 004 | E205: 700 | I205: -700
A206: 1002 | B206: 01/2019 | C206: 005 | E206: 400 | I206: -400
A207: 1002 | B207: 01/2019 | C207: 006 | D207: 3000 | I207: 3000
I208: 0
I209: 0
I210: 0
I211: 0
I212: 0
... 908 more rows
